[Event "Catalan Youth Championship 2024"]
[Site "Cambrils"]
[Date "2024.03.26"]
[Round "6.17"]
[White "Serrahima Susany, Ramon"]
[Black "Ano Pla, Gerard"]
[Result "1/2-1/2"]
[ECO "B33"]
[WhiteElo "2029"]
[BlackElo "2230"]
[Annotator "RC"]
[PlyCount "60"]
[EventDate "2024.03.13"]
[EventType "swiss"]
[EventCountry "ESP"]
[SourceTitle "playchess.com"]
[Source "ChessBase"]
[SourceQuality "1"]
[TimeControl "5400+30"]

1. e4 {[%emt 0:00:03]} c5 {[%emt 0:00:11]} 2. Nf3 {[%emt 0:00:07]} Nc6 {[%emt 0:00:04]} 3. d4 {[%emt 0:00:07]} cxd4 {[%emt 0:00:05]} 4. Nxd4 {[%emt 0:00:06]} Nf6 {[%emt 0:00:03]} 5. Nc3 {[%emt 0:00:09]} e5 {[%emt 0:00:07]} 6. Ndb5 {[%emt 0:00:07]} d6 {[%emt 0:00:05]} 7. Bg5 {[%emt 0:00:15]} a6 {[%emt 0:00:09]} 8. Na3 {[%emt 0:00:12]} b5 {[%emt 0:00:04]} 9. Nd5 {[%emt 0:00:08]} Be7 {[%emt 0:00:05]} 10. Bxf6 {[%emt 0:00:06]} Bxf6 {[%emt 0:00:01]} 11. c4 {[%emt 0:00:18]} b4 {[%emt 0:00:13]} 12. Nc2 {[%emt 0:00:16]} a5 {[%emt 0:00:04]} 13. Qf3 {[%emt 0:00:17]} Bg5 {[%emt 0:08:26]} 14. Be2 {[%emt 0:02:41]} O-O {[%emt 0:00:12]} 15. h4 {[%emt 0:00:05]} Bh6 {[%emt 0:05:03]} 16. g4 {[%emt 0:00:07]} Bf4 {[%emt 0:00:04]} 17. Nxf4 {[%emt 0:02:31]} exf4 {[%emt 0:00:02]} 18. Qxf4 {[%emt 0:00:17]} Ne5 {[%emt 0:07:56]} 19. Ne3 {[%emt 1:32:08]} Re8 {[%emt 0:20:06]} 20. Rd1 {[%emt 0:00:00]} Bb7 {[%emt 0:06:55]} 21. f3 {[%emt 0:00:00]} Qc7 {[%emt 0:01:11]} 22. h5 {[%emt 0:00:00]} d5 {[%emt 0:04:37]} 23. Kf1 {[%emt 0:00:00]} dxe4 {[%emt 0:06:41]} 24. fxe4 {[%emt 0:00:00]} Ra6 {[%emt 0:02:12]} 25. Kg2 {[%emt 0:00:00]} Rf6 {[%emt 0:02:42]} 26. Nf5 {[%emt 0:00:00]} Qc8 {[%emt 0:08:11]} 27. Kg3 {[%emt 0:00:00]} Qb8 {[%emt 0:04:31]} 28. g5 {[%emt 0:00:00]} Rfe6 {[%emt 0:03:36]} 29. h6 {[%emt 0:00:00]} Bxe4 {[%emt 0:05:28]} 30. Nxg7 {[%emt 0:00:00]} Bxh1 {[%emt 0:02:14]} 1/2-1/2

[Event "Catalan Youth Championship 2024"]
[Site "Cambrils"]
[Date "2024.03.26"]
[Round "6.18"]
[White "Funes Ostos, Aitor"]
[Black "Porta Isant, Lluis"]
[Result "1-0"]
[ECO "A18"]
[WhiteElo "2125"]
[BlackElo "2115"]
[Annotator "RC"]
[PlyCount "59"]
[EventDate "2024.03.13"]
[EventType "swiss"]
[EventCountry "ESP"]
[SourceTitle "playchess.com"]
[Source "ChessBase"]
[SourceQuality "1"]
[TimeControl "5400+30"]

1. c4 {[%emt 1:31:00]} Nf6 {[%emt 1:31:00]} 2. Nc3 {[%emt 0:00:30]} e6 {[%emt 0:00:30]} 3. e4 {[%emt 0:00:30]} Bb4 {[%emt 0:00:30]} 4. e5 {[%emt 0:00:30]} Ng8 {[%emt 0:00:30]} 5. Qg4 {[%emt 0:00:30]} g6 {[%emt 0:00:30]} 6. d4 {[%emt 0:00:30]} h5 {[%emt 0:00:30]} 7. Qd1 {[%emt 0:00:30]} b6 {[%emt 0:00:30]} 8. Nf3 {[%emt 0:00:30]} Bb7 {[%emt 0:00:30]} 9. Be2 {[%emt 0:00:30]} Bxc3+ {[%emt 0:00:30]} 10. bxc3 {[%emt 0:00:30]} d6 {[%emt 0:00:30]} 11. Bg5 {[%emt 0:00:30]} Qc8 {[%emt 0:00:30]} 12. O-O {[%emt 0:00:30]} dxe5 {[%emt 0:00:30]} 13. dxe5 {[%emt 0:00:30]} c5 {[%emt 0:00:30]} 14. Qd2 {[%emt 0:00:30]} Nd7 {[%emt 0:00:30]} 15. Rad1 {[%emt 0:00:30]} Ne7 {[%emt 0:00:30]} 16. Bxe7 {[%emt 0:00:30]} Kxe7 {[%emt 0:00:30]} 17. Qg5+ {[%emt 0:00:30]} Ke8 {[%emt 0:00:30]} 18. Rd6 {[%emt 0:00:30]} Qd8 {[%emt 0:00:30]} 19. Qf4 {[%emt 0:00:30]} Qe7 {[%emt 0:00:30]} 20. Rfd1 {[%emt 0:00:30]} g5 {[%emt 0:00:30]} 21. Nxg5 {[%emt 0:00:30]} Nf8 {[%emt 0:00:30]} 22. Ne4 {[%emt 0:00:30]} Bxe4 {[%emt 0:00:30]} 23. Qxe4 {[%emt 0:00:30]} Rc8 {[%emt 0:00:30]} 24. Bf3 {[%emt 0:00:30]} Ng6 {[%emt 0:00:30]} 25. Rd7 {[%emt 0:00:30]} Qxd7 {[%emt 0:00:30]} 26. Rxd7 {[%emt 0:00:30]} Kxd7 {[%emt 0:00:30]} 27. Qb7+ {[%emt 0:00:30]} Kd8 {[%emt 0:00:30]} 28. Qxf7 {[%emt 0:00:30]} Ne7 {[%emt 0:00:30]} 29. Qxe6 {[%emt 0:00:30]} Rg8 {[%emt 0:00:30]} 30. Qd6+ {[%emt 0:00:30]} 1-0

[Event "Catalan Youth Championship 2024"]
[Site "Cambrils"]
[Date "2024.03.26"]
[Round "6.19"]
[White "Valle Luis, Leo"]
[Black "Chiva Perez, Ferran"]
[Result "1-0"]
[ECO "C02"]
[WhiteElo "2230"]
[BlackElo "2025"]
[Annotator "RC"]
[PlyCount "48"]
[EventDate "2024.03.13"]
[EventType "swiss"]
[EventCountry "ESP"]
[SourceTitle "playchess.com"]
[Source "ChessBase"]
[SourceQuality "1"]
[TimeControl "5400+30"]

1. e4 {[%emt 0:00:01]} e6 {[%emt 0:00:13]} 2. d4 {[%emt 0:00:06]} d5 {[%emt 0:00:04]} 3. e5 {[%emt 0:00:12]} c5 {[%emt 0:00:05]} 4. c3 {[%emt 0:00:03]} Nc6 {[%emt 0:00:08]} 5. Nf3 {[%emt 0:00:05]} Nge7 {[%emt 1:32:30]} 6. Na3 {[%emt 0:02:04]} Bd7 {[%emt 0:00:00]} 7. Bd3 {[%emt 1:31:29]} cxd4 {[%emt 0:01:00]} 8. cxd4 {[%emt 0:00:00]} Nb4 {[%emt 0:00:00]} 9. Bb1 {[%emt 0:01:00]} Nf5 {[%emt 0:00:00]} 10. O-O {[%emt 0:00:00]} Be7 {[%emt 0:01:30]} 11. Bd2 {[%emt 0:01:00]} a5 {[%emt 0:00:30]} 12. Qe2 {[%emt 0:00:30]} O-O {[%emt 0:00:30]} 13. Nb5 {[%emt 0:00:30]} Qb6 {[%emt 0:00:30]} 14. a4 {[%emt 0:00:30]} Bxb5 {[%emt 0:00:00]} 15. Qxb5 {[%emt 0:00:00]} Qxb5 {[%emt 0:00:00]} 16. axb5 {[%emt 0:01:00]} Rfc8 {[%emt 0:00:00]} 17. Bc3 {[%emt 0:00:00]} g5 {[%emt 0:00:00]} 18. g4 {[%emt 0:00:00]} Ng7 {[%emt 0:00:00]} 19. Kg2 {[%emt 0:01:30]} f5 {[%emt 0:00:00]} 20. exf6 {[%emt 0:00:00]} Bxf6 {[%emt 0:00:00]} 21. Rh1 {[%emt 0:01:00]} h5 {[%emt 0:00:00]} 22. h3 {[%emt 0:00:30]} b6 {[%emt 0:04:30]} 23. Bg6 {[%emt 0:00:00]} Rc4 {[%emt 0:00:00]} 24. Rhe1 {[%emt 0:00:00]} Nd3 {[%emt 0:00:00]} 1-0

[Event "Catalan Youth Championship 2024"]
[Site "Cambrils"]
[Date "2024.03.26"]
[Round "6.20"]
[White "Sanchez Aguilar, Arnau"]
[Black "Carnicer Rovira, Francesc"]
[Result "1-0"]
[ECO "A36"]
[WhiteElo "2168"]
[BlackElo "1782"]
[Annotator "RC"]
[PlyCount "65"]
[EventDate "2024.03.13"]
[EventType "swiss"]
[EventCountry "ESP"]
[SourceTitle "playchess.com"]
[Source "ChessBase"]
[SourceQuality "1"]
[TimeControl "5400+30"]

1. e4 {[%emt 0:00:15]} c5 {[%emt 0:00:06]} 2. c4 {[%emt 0:00:08]} g6 {[%emt 0:00:08]} 3. Nc3 {[%emt 0:00:54]} Nc6 {[%emt 0:01:37]} 4. d3 {[%emt 0:00:10]} Bg7 {[%emt 0:01:12]} 5. g3 {[%emt 0:00:47]} d6 {[%emt 0:00:18]} 6. Bg2 {[%emt 0:00:34]} Bd7 {[%emt 0:07:10]} 7. Nge2 {[%emt 0:02:24]} e6 {[%emt 0:03:24]} 8. O-O {[%emt 0:01:56]} Nge7 {[%emt 0:00:46]} 9. Be3 {[%emt 0:03:06]} a6 {[%emt 0:04:01]} 10. d4 {[%emt 0:02:20]} Na5 {[%emt 0:11:48]} 11. b3 {[%emt 0:06:02]} Rc8 {[%emt 0:02:33]} 12. Qd3 {[%emt 0:02:06]} Qc7 {[%emt 0:06:23]} 13. Rfd1 {[%emt 0:01:51]} b6 {[%emt 0:05:42]} 14. Rac1 {[%emt 0:12:30]} Nb7 {[%emt 0:03:20]} 15. f4 {[%emt 0:02:24]} f5 {[%emt 0:06:14]} 16. e5 {[%emt 0:09:22]} dxe5 {[%emt 0:00:44]} 17. dxe5 {[%emt 0:00:51]} Bc6 {[%emt 0:00:37]} 18. Bf2 {[%emt 0:09:15]} Rd8 {[%emt 0:04:00]} 19. Qe3 {[%emt 0:00:06]} Kf7 {[%emt 0:39:57]} 20. Bf3 {[%emt 0:09:12]} g5 {[%emt 0:00:00]} 21. Bxc6 {[%emt 0:04:45]} Nxc6 {[%emt 0:00:00]} 22. fxg5 {[%emt 0:00:25]} Nxe5 {[%emt 0:00:00]} 23. b4 {[%emt 0:13:31]} Ng4 {[%emt 0:00:00]} 24. Qf3 {[%emt 0:00:37]} h5 {[%emt 0:02:30]} 25. b5 {[%emt 0:01:37]} a5 {[%emt 0:00:00]} 26. Qc6 {[%emt 0:02:10]} Be5 {[%emt 0:00:00]} 27. g6+ {[%emt 0:00:45]} Ke7 {[%emt 0:00:00]} 28. Nf4 {[%emt 0:01:47]} Bxf4 {[%emt 0:00:00]} 29. gxf4 {[%emt 0:00:05]} Qxc6 {[%emt 0:00:00]} 30. Bh4+ {[%emt 0:00:23]} Nf6 {[%emt 0:00:00]} 31. bxc6 {[%emt 0:00:03]} Nd6 {[%emt 0:00:00]} 32. c7 {[%emt 0:00:39]} Rc8 {[%emt 0:00:00]} 33. Bxf6+ {[%emt 0:00:07]} 1-0

[Event "Catalan Youth Championship 2024"]
[Site "Cambrils"]
[Date "2024.03.26"]
[Round "6.21"]
[White "Martin Barcelo, Carles"]
[Black "Serrano Batova, Vicent"]
[Result "1/2-1/2"]
[ECO "B20"]
[WhiteElo "2234"]
[BlackElo "2104"]
[Annotator "RC"]
[PlyCount "121"]
[EventDate "2024.03.13"]
[EventType "swiss"]
[EventCountry "ESP"]
[SourceTitle "playchess.com"]
[Source "ChessBase"]
[SourceQuality "1"]
[TimeControl "5400+30"]

1. e4 {[%emt 0:01:11]} c5 {[%emt 0:00:01]} 2. b3 {[%emt 0:00:13]} Nc6 {[%emt 0:00:59]} 3. Bb2 {[%emt 0:00:07]} e5 {[%emt 0:00:24]} 4. Bc4 {[%emt 0:01:14]} d6 {[%emt 0:19:09]} 5. Ne2 {[%emt 0:01:05]} Nf6 {[%emt 0:05:35]} 6. Nbc3 {[%emt 0:02:56]} a6 {[%emt 0:01:02]} 7. a4 {[%emt 0:00:32]} Na5 {[%emt 0:02:25]} 8. O-O {[%emt 0:03:25]} g6 {[%emt 0:09:45]} 9. f4 {[%emt 0:01:39]} Bg7 {[%emt 0:01:40]} 10. d3 {[%emt 0:16:18]} O-O {[%emt 0:11:00]} 11. Nd5 {[%emt 0:05:00]} Nxc4 {[%emt 0:05:06]} 12. Nxf6+ {[%emt 0:03:51]} Bxf6 {[%emt 0:00:01]} 13. dxc4 {[%emt 0:09:02]} Bg4 {[%emt 0:00:39]} 14. f5 {[%emt 0:01:51]} gxf5 {[%emt 0:11:25]} 15. exf5 {[%emt 0:03:25]} e4 {[%emt 0:00:15]} 16. Bxf6 {[%emt 0:04:41]} Qxf6 {[%emt 0:00:02]} 17. h3 {[%emt 0:02:26]} Bxe2 {[%emt 0:00:05]} 18. Qxe2 {[%emt 0:00:06]} Rae8 {[%emt 0:00:08]} 19. Rad1 {[%emt 0:01:32]} Re5 {[%emt 0:00:55]} 20. g4 {[%emt 0:08:10]} e3 {[%emt 0:08:31]} 21. Rd3 {[%emt 0:01:42]} Rfe8 {[%emt 0:00:31]} 22. Rfd1 {[%emt 0:01:58]} Qh4 {[%emt 0:03:06]} 23. Kh2 {[%emt 0:03:50]} Re4 {[%emt 0:00:51]} 24. Rg1 {[%emt 0:09:37]} Qe7 {[%emt 0:06:21]} 25. Rg3 {[%emt 0:00:46]} Qe5 {[%emt 0:00:14]} 26. Kg2 {[%emt 0:16:53]} Kh8 {[%emt 0:07:13]} 27. a5 {[%emt 0:00:00]} Kg8 {[%emt 0:00:05]} 28. Rf3 {[%emt 0:00:00]} f6 {[%emt 0:07:02]} 29. Rd5 {[%emt 0:00:00]} Qc3 {[%emt 0:00:00]} 30. Rxd6 {[%emt 0:00:00]} Rd4 {[%emt 0:00:00]} 31. Rxd4 {[%emt 0:00:00]} cxd4 {[%emt 0:00:00]} 32. Rf4 {[%emt 0:01:50]} Re7 {[%emt 0:00:00]} 33. h4 {[%emt 0:01:40]} h6 {[%emt 0:00:00]} 34. Kf3 {[%emt 0:00:00]} Qa1 {[%emt 0:00:07]} 35. Kg2 {[%emt 0:00:00]} Qc3 {[%emt 0:00:02]} 36. g5 {[%emt 0:00:54]} hxg5 {[%emt 0:00:34]} 37. hxg5 {[%emt 0:00:01]} fxg5 {[%emt 0:00:20]} 38. Rg4 {[%emt 0:00:16]} Kf8 {[%emt 0:02:09]} 39. Rxg5 {[%emt 0:01:16]} Qd2 {[%emt 0:01:42]} 40. Kf3 {[%emt 0:00:02]} Qxe2+ {[%emt 0:00:17]} 41. Kxe2 {[%emt 0:00:04]} Rh7 {[%emt 0:00:05]} 42. Rg2 {[%emt 0:01:21]} Rh1 {[%emt 0:00:13]} 43. c3 {[%emt 0:00:30]} dxc3 {[%emt 0:00:39]} 44. Kxe3 {[%emt 0:00:02]} Rb1 {[%emt 0:00:15]} 45. Kd4 {[%emt 0:01:01]} Rxb3 {[%emt 0:00:06]} 46. Rc2 {[%emt 0:00:31]} Ra3 {[%emt 0:00:17]} 47. Rxc3 {[%emt 0:00:27]} Rxa5 {[%emt 0:00:04]} 48. c5 {[%emt 0:00:11]} Rb5 {[%emt 0:00:35]} 49. Re3 {[%emt 0:00:52]} Kf7 {[%emt 0:02:05]} 50. Re6 {[%emt 0:01:02]} a5 {[%emt 0:00:49]} 51. Kc4 {[%emt 0:00:00]} Rb4+ {[%emt 0:00:07]} 52. Kc3 {[%emt 0:00:27]} Rb5 {[%emt 0:00:21]} 53. Kc4 {[%emt 0:00:31]} Rb4+ {[%emt 0:00:02]} 54. Kd5 {[%emt 0:00:24]} a4 {[%emt 0:00:35]} 55. c6 {[%emt 0:00:31]} Rb5+ {[%emt 0:01:13]} 56. Kc4 {[%emt 0:00:32]} bxc6 {[%emt 0:00:10]} 57. Rxc6 {[%emt 0:00:04]} Rxf5 {[%emt 0:00:08]} 58. Ra6 {[%emt 0:00:06]} Rf6 {[%emt 0:00:06]} 59. Rxa4 {[%emt 0:00:04]} Rf4+ {[%emt 0:00:03]} 60. Kb5 {[%emt 0:00:04]} Rxa4 {[%emt 0:00:04]} 61. Kxa4 {[%emt 0:00:02]} 1/2-1/2

[Event "Catalan Youth Championship 2024"]
[Site "Cambrils"]
[Date "2024.03.26"]
[Round "6.22"]
[White "Gomez Navais, Marcal"]
[Black "Rocamora Martorell, Ferran"]
[Result "1/2-1/2"]
[ECO "C42"]
[WhiteElo "2086"]
[BlackElo "2118"]
[Annotator "RC"]
[PlyCount "50"]
[EventDate "2024.03.13"]
[EventType "swiss"]
[EventCountry "ESP"]
[SourceTitle "playchess.com"]
[Source "ChessBase"]
[SourceQuality "1"]
[TimeControl "5400+30"]

1. e4 {[%emt 0:00:03]} e5 {[%emt 0:00:43]} 2. Nf3 {[%emt 0:00:10]} Nf6 {[%emt 0:01:04]} 3. Nxe5 {[%emt 0:00:11]} Nxe4 {[%emt 0:00:42]} 4. Qe2 {[%emt 0:00:29]} Qe7 {[%emt 0:00:05]} 5. Qxe4 {[%emt 0:00:04]} d6 {[%emt 0:00:06]} 6. d4 {[%emt 0:00:05]} dxe5 {[%emt 0:00:05]} 7. dxe5 {[%emt 0:00:05]} Nc6 {[%emt 0:00:07]} 8. Nc3 {[%emt 0:00:04]} Qxe5 {[%emt 0:00:31]} 9. Qxe5+ {[%emt 0:00:10]} Nxe5 {[%emt 0:00:05]} 10. Bf4 {[%emt 0:00:05]} Bd6 {[%emt 0:00:20]} 11. Bg3 {[%emt 0:00:06]} h5 {[%emt 0:01:56]} 12. O-O-O {[%emt 0:06:58]} f6 {[%emt 0:05:50]} 13. Nb5 {[%emt 0:08:49]} h4 {[%emt 0:16:59]} 14. Nxd6+ {[%emt 0:00:35]} cxd6 {[%emt 0:00:19]} 15. Bf4 {[%emt 0:04:43]} Ke7 {[%emt 0:00:28]} 16. h3 {[%emt 0:19:39]} Bf5 {[%emt 0:06:15]} 17. b3 {[%emt 0:02:14]} Rhc8 {[%emt 0:07:00]} 18. c4 {[%emt 0:14:37]} b5 {[%emt 0:06:14]} 19. Kb2 {[%emt 0:00:18]} bxc4 {[%emt 0:01:37]} 20. Bxe5 {[%emt 0:01:12]} fxe5 {[%emt 0:07:47]} 21. Bxc4 {[%emt 0:00:25]} Rc5 {[%emt 0:01:21]} 22. Rd2 {[%emt 0:08:22]} Rb8 {[%emt 0:06:52]} 23. Ka3 {[%emt 0:05:49]} Ra5+ {[%emt 0:03:00]} 24. Kb2 {[%emt 0:00:12]} Rc5 {[%emt 0:00:19]} 25. Ka3 {[%emt 0:00:12]} Ra5+ {[%emt 0:03:17]} 1/2-1/2

[Event "Catalan Youth Championship 2024"]
[Site "Cambrils"]
[Date "2024.03.26"]
[Round "6.23"]
[White "Olcina Monells, Jordi"]
[Black "Navajas Alvarez, Josep"]
[Result "1/2-1/2"]
[ECO "B33"]
[WhiteElo "1929"]
[BlackElo "1989"]
[Annotator "RC"]
[PlyCount "105"]
[EventDate "2024.03.13"]
[EventType "swiss"]
[EventCountry "ESP"]
[SourceTitle "playchess.com"]
[Source "ChessBase"]
[SourceQuality "1"]
[TimeControl "5400+30"]

1. e4 {[%emt 0:00:05]} c5 {[%emt 0:00:11]} 2. Nf3 {[%emt 0:00:11]} Nc6 {[%emt 0:00:23]} 3. d4 {[%emt 0:00:06]} cxd4 {[%emt 0:00:07]} 4. Nxd4 {[%emt 1:32:08]} Nf6 {[%emt 0:00:22]} 5. Nc3 {[%emt 0:00:30]} e5 {[%emt 1:31:57]} 6. Ndb5 {[%emt 0:00:00]} d6 {[%emt 0:00:30]} 7. Bg5 {[%emt 0:00:00]} a6 {[%emt 0:00:00]} 8. Na3 {[%emt 0:00:00]} b5 {[%emt 0:00:00]} 9. Nd5 {[%emt 0:00:00]} Be7 {[%emt 0:01:30]} 10. Bxf6 {[%emt 0:00:00]} Bxf6 {[%emt 0:00:00]} 11. c4 {[%emt 0:03:00]} b4 {[%emt 0:00:00]} 12. Nc2 {[%emt 0:00:30]} a5 {[%emt 0:00:00]} 13. g3 {[%emt 0:00:30]} O-O {[%emt 0:00:00]} 14. Bg2 {[%emt 0:00:30]} Bg5 {[%emt 0:02:30]} 15. O-O {[%emt 0:00:30]} Be6 {[%emt 0:00:00]} 16. Qd3 {[%emt 0:00:30]} Ne7 {[%emt 0:01:00]} 17. Nce3 {[%emt 0:00:30]} Bxe3 {[%emt 0:00:00]} 18. Nxe3 {[%emt 0:00:30]} Qc7 {[%emt 0:01:00]} 19. Rac1 {[%emt 0:00:30]} Rfd8 {[%emt 0:00:30]} 20. Rfd1 {[%emt 0:00:30]} Rac8 {[%emt 0:00:30]} 21. h4 {[%emt 0:00:30]} Qd7 {[%emt 0:00:30]} 22. Rd2 {[%emt 0:00:30]} Rc5 {[%emt 0:00:30]} 23. Rcd1 {[%emt 0:00:30]} Qc8 {[%emt 0:00:30]} 24. b3 {[%emt 0:00:30]} Nc6 {[%emt 0:00:30]} 25. Kh2 {[%emt 0:00:30]} Kh8 {[%emt 0:00:30]} 26. Qf1 {[%emt 0:00:00]} Qc7 {[%emt 0:00:30]} 27. Rd3 {[%emt 0:01:00]} Nd4 {[%emt 0:00:00]} 28. R1d2 {[%emt 0:00:00]} f5 {[%emt 0:01:00]} 29. exf5 {[%emt 0:00:00]} Bxf5 {[%emt 0:00:30]} 30. Nxf5 {[%emt 0:00:00]} Nxf5 {[%emt 0:00:30]} 31. f4 {[%emt 0:02:00]} Re8 {[%emt 0:00:30]} 32. Be4 {[%emt 0:00:30]} Nd4 {[%emt 0:00:00]} 33. fxe5 dxe5 34. Rf2 {[%emt 0:01:00]} Qd6 {[%emt 0:01:30]} 35. Rf7 {[%emt 0:00:30]} Rcc8 {[%emt 0:00:30]} 36. Rd2 {[%emt 0:00:00]} Nf3+ {[%emt 0:00:00]} 37. Qxf3 {[%emt 0:00:00]} Qxd2+ {[%emt 0:00:00]} 38. Kh3 {[%emt 0:01:30]} Qd6 {[%emt 0:00:00]} 39. Qh5 {[%emt 0:00:30]} h6 {[%emt 0:02:00]} 40. Qf5 {[%emt 0:00:00]} g6 {[%emt 0:00:00]} 41. Qxg6 {[%emt 0:00:00]} Qxg6 {[%emt 0:00:00]} 42. Bxg6 {[%emt 0:01:30]} Rf8 {[%emt 0:01:30]} 43. Ra7 {[%emt 0:00:00]} Ra8 {[%emt 0:00:00]} 44. Re7 {[%emt 0:00:00]} a4 {[%emt 0:01:00]} 45. bxa4 {[%emt 0:00:00]} Rxa4 {[%emt 0:00:00]} 46. Rxe5 {[%emt 0:00:00]} Rxa2 {[%emt 0:00:00]} 47. Rb5 {[%emt 0:02:30]} Rb2 {[%emt 0:00:00]} 48. c5 {[%emt 0:00:00]} Rc8 {[%emt 0:00:00]} 49. Bf7 {[%emt 0:01:00]} Rc2 {[%emt 0:00:00]} 50. Rxb4 {[%emt 0:00:00]} R2xc5 {[%emt 0:00:00]} 51. h5 {[%emt 0:01:00]} Kg7 {[%emt 0:00:00]} 52. Bg6 {[%emt 0:00:00]} R8c7 {[%emt 0:04:00]} 53. Rf4 {[%emt 0:00:00]} 1/2-1/2

[Event "Catalan Youth Championship 2024"]
[Site "Cambrils"]
[Date "2024.03.26"]
[Round "6.24"]
[White "Tortajada Marti, Pol"]
[Black "Vara Soler, Luis"]
[Result "1/2-1/2"]
[ECO "C50"]
[WhiteElo "1766"]
[BlackElo "1889"]
[Annotator "NA RC"]
[PlyCount "71"]
[EventDate "2024.03.13"]
[EventType "swiss"]
[EventCountry "ESP"]
[SourceTitle "playchess.com"]
[Source "ChessBase"]
[SourceQuality "1"]
[TimeControl "5400+30"]

1. e4 {[%emt 0:00:03]} e5 {[%emt 0:00:06]} 2. Nf3 {[%emt 0:00:04]} Nc6 {[%emt 0:00:04]} 3. Bc4 {[%emt 0:00:04]} Bc5 {[%emt 0:00:06]} 4. O-O {[%emt 0:00:25]} Nf6 {[%emt 0:00:05]} 5. d4 {[%emt 0:00:22]} Bxd4 {[%emt 0:00:06]} 6. Nxd4 {[%emt 0:00:05]} Nxd4 {[%emt 0:00:04]} 7. Bg5 {[%emt 0:00:04]} d6 {[%emt 0:00:46]} 8. f4 {[%emt 0:00:08]} Qe7 {[%emt 0:00:07]} 9. Nc3 {[%emt 0:00:18]} c6 {[%emt 0:01:15]} 10. fxe5 {[%emt 0:04:24]} dxe5 {[%emt 0:00:14]} 11. Kh1 {[%emt 0:02:13]} Be6 {[%emt 0:00:56]} 12. Bxe6 {[%emt 0:10:01]} Qxe6 {[%emt 0:04:49]} 13. Bxf6 {[%emt 0:00:21]} gxf6 $15 {[%emt 0:00:04]} 14. Ne2 {[%emt 0:14:49]} Nxe2 {[%emt 0:00:58]} 15. Qxe2 {[%emt 0:00:07]} Rg8 {[%emt 0:08:23]} 16. Rf5 {[%emt 0:11:18]} Rg6 {[%emt 0:01:52]} 17. Qf2 {[%emt 0:54:14]} b6 {[%emt 0:03:39]} 18. Rd1 {[%emt 0:00:00]} Qe7 {[%emt 0:03:47]} 19. h3 {[%emt 0:00:00]} Rd8 {[%emt 0:00:58]} 20. Rf1 {[%emt 0:00:00]} Rd4 {[%emt 0:04:30]} 21. Rxf6 {[%emt 0:00:00]} Rxf6 {[%emt 0:00:09]} 22. Qxf6 {[%emt 0:00:00]} Qxf6 {[%emt 0:00:28]} 23. Rxf6 {[%emt 0:00:00]} c5 {[%emt 0:00:35]} 24. Rh6 {[%emt 0:00:00]} Rxe4 {[%emt 0:01:08]} 25. Rxh7 {[%emt 0:00:00]} Ke7 {[%emt 0:03:28]} 26. h4 {[%emt 0:00:00]} Rf4 {[%emt 0:03:55]} 27. Kg1 {[%emt 0:00:00]} Kf6 {[%emt 0:03:47]} 28. Rh8 {[%emt 0:00:00]} Rd4 {[%emt 0:58:11]} 29. Ra8 {[%emt 0:00:00]} Rd7 {[%emt 0:00:00]} 30. Kf1 {[%emt 0:00:00]} Kg6 {[%emt 0:00:00]} 31. Ke2 {[%emt 0:00:00]} f5 {[%emt 0:00:00]} 32. g3 {[%emt 0:00:00]} Kf6 {[%emt 0:00:00]} 33. Ke3 {[%emt 0:00:00]} Rg7 {[%emt 0:00:00]} 34. Rf8+ {[%emt 0:00:00]} Ke6 {[%emt 0:00:00]} 35. Re8+ {[%emt 0:00:00]} Kd6 {[%emt 0:00:00]} 36. Kf3 {[%emt 0:00:23]} 1/2-1/2

[Event "Catalan Youth Championship 2024"]
[Site "Cambrils"]
[Date "2024.03.27"]
[Round "7.1"]
[White "Guiu Ruiz, Lluc"]
[Black "Caballero Mogilnikov, Liam"]
[Result "0-1"]
[ECO "B52"]
[WhiteElo "1613"]
[BlackElo "1659"]
[Annotator "NA RC"]
[PlyCount "110"]
[EventDate "2024.03.13"]
[EventType "swiss"]
[EventCountry "ESP"]
[SourceTitle "playchess.com"]
[Source "ChessBase"]
[SourceQuality "1"]
[TimeControl "5400+30"]

1. e4 {[%emt 0:00:02]} c5 {[%emt 0:00:18]} 2. Nf3 {[%emt 0:00:24]} d6 {[%emt 0:00:34]} 3. Bb5+ {[%emt 0:00:36]} Bd7 {[%emt 0:01:07]} 4. Bxd7+ {[%emt 0:00:20]} Qxd7 {[%emt 0:00:45]} 5. c4 {[%emt 0:00:20]} Nc6 {[%emt 0:00:38]} 6. d4 {[%emt 0:00:46]} cxd4 {[%emt 0:00:49]} 7. Nxd4 {[%emt 0:00:11]} Nf6 {[%emt 0:00:49]} 8. Nc3 {[%emt 0:00:16]} g6 {[%emt 0:01:04]} 9. f3 {[%emt 0:00:21]} Bg7 {[%emt 0:01:05]} 10. Be3 {[%emt 0:00:37]} O-O {[%emt 0:01:01]} 11. O-O {[%emt 0:00:34]} Rfc8 {[%emt 0:05:02]} 12. b3 {[%emt 0:01:31]} Nxd4 {[%emt 0:10:53]} 13. Bxd4 {[%emt 0:00:19]} Rc6 {[%emt 0:01:44]} 14. Qd3 {[%emt 0:02:05]} e6 {[%emt 0:05:59]} 15. Rac1 {[%emt 0:04:57]} a6 {[%emt 0:07:24]} 16. Rfd1 {[%emt 0:02:31]} Rac8 {[%emt 0:03:17]} 17. e5 {[%emt 0:18:22]} dxe5 {[%emt 0:03:04]} 18. Bxe5 {[%emt 0:00:17]} Qxd3 {[%emt 0:01:18]} 19. Rxd3 {[%emt 0:00:14]} b5 {[%emt 0:01:15]} 20. cxb5 {[%emt 0:02:04]} axb5 {[%emt 0:00:25]} 21. Rcd1 {[%emt 0:00:31]} b4 {[%emt 0:04:21]} 22. Nb5 {[%emt 0:06:21]} Rc1 {[%emt 0:03:40]} 23. Nd6 {[%emt 0:02:05]} Rxd1+ {[%emt 0:01:18]} 24. Rxd1 {[%emt 0:00:07]} Rd8 {[%emt 0:01:07]} 25. Kf2 {[%emt 0:00:42]} Ng4+ {[%emt 0:01:15]} 26. fxg4 {[%emt 0:06:06]} Bxe5 {[%emt 0:00:16]} 27. Nxf7 {[%emt 0:01:28]} Rxd1 {[%emt 0:00:45]} 28. Nxe5 {[%emt 0:00:08]} Rd2+ {[%emt 0:00:49]} 29. Kf3 {[%emt 0:01:21]} Rxa2 {[%emt 0:00:44]} 30. Nc4 {[%emt 0:01:03]} Rc2 {[%emt 0:01:19]} 31. Na5 {[%emt 0:00:54]} Kf7 {[%emt 0:00:54]} 32. Ke4 {[%emt 0:02:13]} Rxg2 {[%emt 0:00:52]} 33. Nc6 {[%emt 0:01:03]} Rxh2 {[%emt 0:03:21]} 34. Kd4 {[%emt 0:01:04]} Rh4 {[%emt 0:01:39]} 35. Kc5 {[%emt 0:00:26]} Ke8 {[%emt 0:01:24]} 36. Nxb4 {[%emt 0:00:30]} Rxg4 {[%emt 0:00:40]} 37. Nc6 {[%emt 0:00:26]} Rg5+ {[%emt 0:01:17]} 38. Kc4 {[%emt 0:00:34]} Kd7 {[%emt 0:01:52]} 39. Nd4 {[%emt 0:02:14]} Rg4 {[%emt 0:00:58]} 40. Kc5 {[%emt 0:00:23]} Rxd4 {[%emt 0:01:39]} 41. Kxd4 {[%emt 0:00:05]} Kc6 {[%emt 0:00:27]} 42. Ke5 {[%emt 0:00:23]} Kb5 {[%emt 0:00:37]} 43. Kxe6 {[%emt 0:00:15]} h5 {[%emt 0:00:23]} 44. Ke5 {[%emt 0:00:05]} g5 {[%emt 0:00:27]} 45. Kf5 {[%emt 0:00:31]} g4 {[%emt 0:00:29]} 46. Ke4 {[%emt 0:00:19]} g3 {[%emt 0:00:39]} 47. Kf3 {[%emt 0:00:09]} h4 {[%emt 0:00:13]} 48. Kg2 {[%emt 0:00:08]} Kb4 {[%emt 0:00:15]} 49. Kh3 {[%emt 0:01:00]} Kxb3 {[%emt 0:00:12]} 50. Kg2 {[%emt 0:46:09]} Kc2 {[%emt 0:00:12]} 51. Kh3 {[%emt 0:00:00]} Kd2 {[%emt 0:00:13]} 52. Kg2 {[%emt 0:00:00]} Ke2 {[%emt 0:00:44]} 53. Kg1 {[%emt 0:00:00]} h3 {[%emt 0:00:26]} 54. Kh1 {[%emt 0:00:00]} g2+ {[%emt 0:00:10]} 55. Kg1 {[%emt 0:00:00]} Kf3 {[%emt 0:00:19]} 0-1